bitfinex/quotes_ETHUSD_20250428
["timestamp","ask_amount","ask_price","bid_price","bid_amount"]
[1745802764117,13.813409,1777.3,1777.0,0.11908993]
[1745802764516,3.0,1777.2,1777.0,0.11908993]
[1745802764706,22.565362,1777.1,1777.0,0.11908993]
[1745802764903,22.565362,1777.1,1776.7,0.8317]
[1745802765109,3.0,1777.1,1777.0,0.11908993]
[1745802765314,16.969668,1777.1,1776.7,0.8317]
[1745802765608,3.0,1777.1,1776.8,0.12065937]
[1745802765803,12.165706,1777.0,1776.8,0.12065937]
[1745802768440,9.630526,1777.0,1776.8,0.12065937]
[1745802768625,3.0,1777.0,1776.8,0.12065937]
[1745802768824,8.358,1777.2,1776.8,0.12065937]
[1745802769120,3.0,1777.0,1776.8,0.12065937]
[1745802769317,2.643057,1776.9,1776.8,0.12065937]
[1745802769549,3.0,1777.0,1776.8,0.12065937]
[1745802769837,5.358,1777.2,1776.8,0.12065937]
[1745802769838,8.358,1777.2,1776.8,0.12065937]
[1745802770136,3.0,1777.0,1776.8,0.12065937]
[1745802770456,8.358,1777.2,1776.8,0.12065937]
[1745802771537,0.31458237,1777.1,1776.8,0.12065937]
[1745802773314,3.0,1777.1,1776.8,0.12065937]
[1745802775531,0.8148,1777.0,1776.8,0.12065937]
[1745802775727,3.8148,1776.9,1776.8,0.11896324]
[1745802775932,33.949737,1776.9,1776.2,0.802]
[1745802776259,3.0,1776.7,1776.3,0.10792076]
[1745802776455,3.0,1776.5,1776.3,0.10792076]
[1745802776657,6.55045,1776.4,1776.3,0.10792076]
[1745802776848,5.66753812,1776.8,1776.3,0.10792076]
[1745802777040,3.0,1776.7,1776.3,0.10792076]
[1745802777449,0.31453812,1776.8,1776.3,0.10792076]
[1745802777766,3.0,1776.7,1776.3,0.10792076]
[1745802778567,3.0,1776.5,1776.3,0.10792076]
[1745802778773,12.457747,1776.4,1776.3,0.10792076]
[1745802778931,11.810232,1776.4,1776.3,0.10792076]
[1745802779462,3.31408828,1776.4,1776.3,0.10792076]
[1745802779644,33.44902528,1776.4,1776.3,0.10792076]
[1745802779836,3.0,1776.3,1776.0,0.7762]
[1745802781356,8.354,1776.4,1775.8,6.8489]
[1745802781561,8.354,1776.4,1775.6,0.7789]
[1745802781562,3.8172,1776.3,1775.6,0.7789]
[1745802781765,3.8172,1776.3,1775.6,1.34688455]
[1745802781967,3.8172,1776.3,1775.6,0.7789]
[1745802782775,3.0,1776.1,1775.6,0.7789]
[1745802783487,3.8172,1776.3,1775.7,0.00239342]
[1745802784667,0.8172,1776.3,1775.7,0.00239342]
[1745802784871,3.0,1776.1,1775.8,0.8291]
[1745802785166,3.0,1776.1,1775.8,0.83142999]
[1745802785365,0.7824,1776.5,1775.8,0.83142999]
[1745802785568,0.7824,1776.7,1775.9,0.8291]
[1745802785864,5.355,1776.4,1776.0,0.83130316]
[1745802787469,3.7824,1776.7,1776.0,0.83130316]
[1745802787658,5.355,1776.6,1776.0,0.83130316]
[1745802789359,5.355,1776.5,1776.0,0.83130316]
[1745802789665,3.0,1776.7,1776.0,0.83130316]
[1745802789863,5.355,1776.5,1776.1,0.7627]
[1745802790055,5.355,1776.5,1776.2,0.00207636]
[1745802790256,3.17284348,1777.5,1776.3,0.7627]
[1745802790456,17.702,1777.4,1776.5,0.8287]
[1745802790749,0.31375998,1777.3,1776.7,0.8287]
[1745802790947,4.0,1776.8,1776.7,0.8287]
[1745802791549,3.106691,1776.9,1776.7,0.8287]
[1745802791858,3.0,1777.2,1776.7,0.8287]
[1745802792062,3.0,1777.0,1776.7,0.8287]
[1745802792287,3.555184,1776.9,1776.7,0.8287]
[1745802792688,3.231691,1776.9,1776.7,0.8287]
[1745802792848,3.0,1777.3,1776.7,0.8287]
[1745802793050,33.134937,1777.3,1776.7,0.8287]
[1745802793244,30.4487841,1777.2,1776.8,0.11416897]
[1745802793475,3.0,1777.0,1776.8,0.11416897]
[1745802793735,4.103739,1776.9,1776.8,0.11416897]
[1745802794794,3.0,1776.9,1776.8,0.11416897]
[1745802794958,3.0,1776.8,1776.3,0.83]
[1745802795157,3.0,1776.6,1776.4,0.1115686]
[1745802795375,19.852769,1776.5,1776.4,0.1115686]
[1745802795571,3.0,1776.4,1776.1,0.7732]
[1745802795899,3.0,1776.6,1776.2,0.11144182]
[1745802796461,5.354,1776.6,1776.2,0.11144182]
[1745802798304,3.0,1776.5,1776.2,0.11144182]
[1745802800718,3.0,1776.3,1776.2,0.11144182]
[1745802800935,17.66447,1776.3,1776.2,0.11144182]
[1745802801094,3.0,1776.3,1776.2,0.11144182]
[1745802801595,17.506797,1776.3,1776.2,0.11144182]
[1745802801795,17.507366,1776.3,1776.2,0.11144182]
[1745802802191,17.16238,1776.3,1776.2,0.11144182]
[1745802803934,21.16238,1776.3,1776.2,0.11144182]
[1745802804237,0.7857,1776.2,1775.8,0.7951]
[1745802804467,5.35,1776.1,1775.5,0.7935]
[1745802804673,5.35,1776.1,1775.9,0.1079181]
[1745802804844,2.524529,1776.0,1775.5,0.7935]
[1745802805172,22.306133,1775.2,1775.0,11.72314551]
[1745802805478,3.0,1775.4,1775.0,5.65314551]
[1745802806034,0.7867,1775.8,1775.0,5.65314551]
[1745802806365,3.0,1775.7,1775.0,5.65314551]
[1745802806577,3.0,1775.7,1775.0,11.28694767]
[1745802806863,3.7867,1775.8,1775.2,0.8249]
[1745802807706,30.44884212,1775.7,1775.2,0.8249]
[1745802807828,3.0,1775.5,1775.2,0.8249]
[1745802808036,3.0,1775.3,1775.2,0.8249]
[1745802808241,3.0,1775.3,1774.8,4.90094551]
[1745802808242,12.023734,1775.3,1774.9,0.8325]
[1745802808572,3.7595,1775.4,1774.9,0.8325]
[1745802809561,3.0,1775.4,1774.9,1.40584455]
[1745802809949,3.0,1775.4,1775.0,0.7686]
[1745802810161,0.7597,1775.8,1775.0,0.7686]
[1745802810362,6.1117,1775.8,1775.0,0.7686]
[1745802810665,5.352,1776.1,1775.3,0.7707]
[1745802810905,5.352,1776.1,1775.4,0.7707]
[1745802811072,3.0,1776.0,1775.4,0.7707]
[1745802811973,5.352,1776.1,1775.4,0.7707]
[1745802812353,3.0,1776.0,1775.4,0.7707]
[1745802812558,5.352,1776.2,1775.5,0.8258]
[1745802812962,3.0,1776.1,1775.5,0.8258]
[1745802813950,4.0,1776.3,1775.6,0.8236]
[1745802814151,4.0,1776.3,1775.7,0.8236]
[1745802814386,4.0,1776.3,1775.7,1.78642234]
[1745802814675,4.0,1776.3,1775.7,0.8236]
[1745802816271,3.0,1776.2,1775.7,0.8236]
[1745802817997,3.0,1776.1,1775.7,0.8236]
[1745802823304,3.0,1776.1,1775.8,0.10875856]
[1745802824889,3.0,1776.1,1775.9,0.7579]
[1745802825093,3.0,1776.1,1775.9,0.86672198]
[1745802829871,3.0,1776.5,1775.9,0.86672198]
[1745802830473,0.31428199,1776.4,1775.9,0.86672198]
[1745802831070,0.31428199,1776.4,1776.0,6.71107507]
[1745802831385,0.31428199,1776.4,1776.3,0.7579]
[1745802831583,3.2255375,1776.9,1776.3,0.8644149]
[1745802831584,0.31428199,1776.8,1776.3,0.8644149]
[1745802832703,0.31428199,1776.9,1776.3,0.8644149]
[1745802832907,0.31428199,1776.9,1776.4,0.8167]
[1745802833206,0.31428199,1776.9,1776.5,0.64107507]
[1745802833386,0.31428199,1776.9,1776.6,0.92150335]
[1745802833973,0.31428199,1777.1,1776.6,0.92150335]
[1745802837017,0.31428199,1777.2,1776.6,0.92150335]
[1745802837914,0.7889,1777.4,1776.6,0.92150335]
[1745802838681,1.10273035,1777.4,1776.6,0.92150335]
[1745802839590,3.0,1777.3,1776.6,0.92150335]
[1745802839824,3.0,1777.3,1776.7,0.8294]
[1745802839991,3.0,1777.3,1776.8,0.10493006]
[1745802840729,3.64107507,1777.3,1776.8,0.10493006]
[1745802840894,3.0,1777.1,1776.8,0.10493006]
[1745802841215,8.30873,1777.0,1776.8,0.10493006]
[1745802843112,3.897796,1777.0,1776.8,0.10493006]
[1745802843310,4.959796,1777.0,1776.8,0.10493006]
[1745802843509,3.897796,1777.0,1776.8,0.10493006]
[1745802843817,7.402796,1777.0,1776.7,0.8294]
[1745802844011,3.0,1777.1,1776.7,0.8294]
[1745802844509,1.8,1777.0,1776.7,0.8294]
[1745802845787,1.8,1777.0,1776.8,0.8176]
[1745802847385,13.623142,1776.9,1776.8,0.8176]
[1745802847695,12.470096,1776.9,1776.6,0.7613]
[1745802847889,3.0,1776.8,1776.5,0.237951]
[1745802848099,5.677195,1776.7,1776.5,0.237951]
[1745802848285,3.0,1776.8,1776.5,0.237951]
[1745802848691,4.8,1777.0,1776.6,0.7613]
[1745802848980,1.8,1777.0,1776.6,0.7613]
[1745802850987,1.8,1777.0,1776.5,0.237951]
[1745802850988,3.0,1776.8,1776.5,0.237951]
[1745802853433,1.8,1777.0,1776.5,0.237951]
[1745802853736,1.8,1777.0,1776.9,1.40957507]
[1745802854030,1.8,1777.0,1776.9,2.11334126]
[1745802854246,1.8,1777.0,1776.9,1.40957507]
[1745802857399,1.8,1777.0,1776.9,0.7685]
[1745802859533,25.013382,1777.0,1776.7,0.7654]
[1745802859708,1.8,1777.0,1776.7,0.7654]
[1745802861156,1.8,1777.0,1776.7,7.03464937]
[1745802861401,1.8,1777.0,1776.9,1.40437507]
[1745802862559,1.8,1777.0,1776.9,13.56863248]
[1745802868041,0.42361791,1778.2,1776.9,13.56863248]
[1745802868042,0.8135,1778.0,1777.5,0.8078]
[1745802868250,0.8135,1778.2,1777.6,0.64107507]
[1745802868623,1.12791042,1778.2,1777.6,0.87887883]
[1745802868821,0.31441042,1778.2,1777.7,1.04559038]
[1745802869252,0.31441042,1778.5,1778.1,0.8078]
[1745802869457,4.0,1778.2,1778.1,0.8078]
[1745802869860,4.0,1778.2,1778.1,6.43178065]
[1745802870029,0.31441042,1778.5,1778.1,7.79228745]
[1745802870352,0.7786,1778.8,1778.3,0.64107507]
[1745802870552,3.7786,1778.8,1778.3,0.64107507]
[1745802870729,0.7786,1778.8,1778.3,0.64107507]
[1745802870929,3.7786,1778.8,1778.3,0.64107507]
[1745802871126,3.0,1777.9,1777.4,6.07]
[1745802871344,11.882978,1777.8,1777.4,6.07]
[1745802871523,13.95628517,1777.8,1777.4,6.07]
[1745802871719,11.882978,1777.8,1777.4,6.07]
[1745802871924,9.289178,1777.8,1777.4,6.07]
[1745802872468,7.714152,1777.8,1777.4,6.07]
[1745802875260,3.8207,1777.8,1777.1,0.775]
[1745802875725,34.26897126,1777.8,1777.0,6.07]
[1745802876170,34.26247126,1777.8,1777.0,6.07]
[1745802876396,0.8142,1777.7,1777.0,6.07]
[1745802876557,3.0,1777.5,1777.0,6.07]
[1745802878225,0.8142,1777.4,1776.9,0.8205]
[1745802878429,0.8142,1777.4,1776.6,6.8905]
[1745802878661,0.8142,1777.4,1776.6,7.57955]
[1745802878864,1.12726562,1777.4,1776.6,7.57955]
[1745802879168,0.8277,1777.3,1776.6,6.75905]
[1745802879457,3.0,1777.1,1776.6,6.07]
[1745802879663,3.0,1776.9,1776.4,0.8022]
[1745802879849,0.8277,1777.0,1776.4,0.8022]
[1745802882066,0.8277,1777.0,1776.2,6.8498]
[1745802883270,1.14069991,1777.0,1776.2,6.8498]
[1745802884556,4.14069991,1777.0,1776.4,3.16027004]
[1745802884745,0.8277,1777.0,1776.4,3.16027004]
[1745802884941,0.8277,1777.0,1776.5,0.316027]
[1745802887473,0.8277,1777.0,1776.2,15.64004704]
[1745802888268,3.8277,1777.0,1776.2,6.8498]
[1745802888468,3.8277,1777.0,1776.2,12.47974007]
[1745802888662,0.8277,1777.0,1776.2,12.47974007]
[1745802888861,3.8277,1777.0,1776.3,1.24797401]
[1745802889741,0.8277,1777.0,1776.3,1.24797401]
[1745802890152,3.8277,1777.0,1776.3,1.24797401]
[1745802890670,3.8277,1777.0,1776.3,7.31797401]
[1745802891471,0.8277,1777.0,1776.3,7.31797401]
[1745802891653,3.8277,1777.0,1776.4,0.7317974]
[1745802895142,0.41517215,1777.3,1776.6,8.78879006]
[1745802895143,0.753,1777.3,1776.6,8.78879006]
[1745802895451,0.753,1777.3,1776.8,0.8322]
[1745802895656,0.753,1777.3,1776.8,1.47257019]
[1745802896479,16.89,1777.5,1776.8,1.47257019]
[1745802896681,0.7748,1777.5,1777.1,5.62694214]
[1745802896853,6.1058,1777.8,1777.2,1.2030644]
[1745802897047,3.0,1777.7,1777.2,0.64037019]
[1745802897278,0.7748,1777.8,1777.2,0.64037019]
[1745802897462,0.7748,1777.8,1777.2,6.26713828]
[1745802897653,3.7748,1777.8,1777.1,9.56751094]
[1745802897854,3.7748,1777.8,1777.2,5.6268012]
[1745802898054,3.7748,1777.8,1777.3,0.56268012]
[1745802898461,3.7748,1777.8,1777.1,3.94056574]
[1745802898796,0.7748,1777.8,1777.1,3.94056574]
[1745802898958,3.7748,1777.8,1777.1,3.94056574]
[1745802899396,3.7748,1777.8,1777.1,9.56767249]
[1745802900200,3.7748,1777.8,1777.1,0.7808]
[1745802900496,3.7748,1777.8,1777.1,6.40779359]
[1745802900696,3.0,1777.8,1777.3,0.7545]
[1745802900905,3.0,1777.9,1777.3,6.38100207]
[1745802901078,0.797,1778.0,1777.3,6.38100207]
[1745802901391,3.797,1778.0,1777.3,6.8245]
[1745802901584,3.797,1778.0,1777.4,0.68245]
[1745802901780,3.0,1778.0,1777.3,6.07]
[1745802902153,0.8055,1777.8,1777.3,6.07]
[1745802903796,0.31348273,1777.9,1777.4,0.7615]
[1745802904098,5.64348273,1777.9,1777.4,0.7615]
[1745802904280,5.33,1777.9,1777.4,0.7615]
[1745802904459,33.885737,1777.8,1777.3,6.07]
[1745802904662,3.7508,1777.8,1777.3,6.07]
[1745802905006,3.7508,1777.8,1776.9,14.11836914]
[1745802905007,3.7508,1777.8,1777.0,6.8627]
[1745802905175,0.7725,1777.7,1777.0,6.8627]
[1745802905496,0.7725,1777.7,1777.0,8.08207]
[1745802908600,1.08561375,1777.7,1777.0,8.08207]
[1745802909300,0.7517,1777.2,1776.6,6.8399]
[1745802909504,5.329,1777.1,1776.6,6.07]
[1745802909800,1.06481375,1777.2,1776.6,6.07]
[1745802910099,0.7517,1777.6,1776.8,3.15976574]
[1745802910398,3.7517,1777.6,1776.9,12.01355822]
[1745802910724,3.7517,1777.6,1777.0,0.7699]
[1745802913817,30.965237,1777.5,1776.9,6.07]
[1745802913986,3.0,1777.3,1776.9,6.07]
[1745802914179,8.50053,1777.2,1776.9,6.07]
[1745802914587,5.33,1777.4,1776.9,6.7546]
[1745802914799,5.33,1777.4,1777.0,0.776]
[1745802915506,3.0,1777.6,1777.0,0.776]
[1745802915805,5.33,1777.5,1777.0,0.776]
[1745802916505,5.33,1777.5,1777.0,6.846]
[1745802916803,5.33,1777.5,1777.1,0.6846]
[1745802917110,8.33,1777.6,1777.1,0.6846]
[1745802919688,3.0,1777.6,1777.1,0.6846]
[1745802919887,8.33,1777.6,1777.1,0.6846]
[1745802920710,8.33,1777.6,1777.2,0.7986]
[1745802920886,0.8303,1777.7,1777.2,0.7986]
[1745802921210,3.0,1777.6,1777.2,0.7986]
[1745802921805,0.7507,1777.9,1777.2,0.7986]
[1745802922109,5.6437918,1778.0,1777.4,0.7539]
[1745802923476,6.0807,1778.3,1777.6,6.379241]
[1745802923736,5.33,1778.3,1777.8,6.378713]
[1745802923897,1.42201816,1778.7,1777.9,0.8111]
[1745802924086,5.323,1778.6,1778.0,0.8111]
[1745802924290,5.323,1778.6,1778.0,1.56156701]
[1745802924291,8.323,1778.6,1778.0,1.56156701]
[1745802924798,8.323,1778.6,1778.0,0.8111]
[1745802925389,3.0,1778.6,1778.0,0.8111]
[1745802925593,5.323,1778.5,1778.0,0.8111]
[1745802925993,8.323,1778.6,1778.0,0.8111]
[1745802926412,3.0,1778.5,1778.0,0.8111]
[1745802926717,3.0,1778.5,1777.8,6.825]
[1745802926718,30.891537,1778.4,1777.8,6.825]
[1745802926879,1.07017461,1778.4,1777.8,6.825]
[1745802928081,6.825,1777.8,1777.5,6.8496]
[1745802928308,3.0,1777.7,1777.5,6.07]
[1745802928882,3.0,1777.7,1777.0,0.7968]
[1745802929521,0.31327727,1777.6,1777.0,0.7968]
[1745802929726,3.8126,1777.4,1776.9,6.07]
[1745802930027,3.8126,1777.4,1776.8,5.72034551]
[1745802930028,6.97165321,1777.4,1776.8,4.90094551]
[1745802930380,0.31327727,1777.3,1776.8,4.90094551]
[1745802930585,0.31327727,1777.3,1776.9,0.7609]
[1745802931178,3.0,1777.5,1776.9,0.7609]
[1745802931585,3.0,1777.3,1776.9,0.7609]
[1745802931828,3.933383,1777.2,1776.9,0.7609]
[1745802932033,3.0,1777.2,1776.9,0.7609]
[1745802932325,3.0,1777.0,1776.6,1.04572562]
[1745802933612,5.323,1777.2,1776.6,1.04572562]
[1745802933913,3.0,1777.1,1776.6,1.75729818]
[1745802935302,3.0,1777.1,1776.6,1.04572562]
[1745802936086,3.7833,1777.3,1776.6,1.04572562]
[1745802936303,5.324,1777.2,1776.6,1.04572562]
[1745802937710,5.324,1777.2,1776.6,7.11572562]
[1745802938829,5.324,1777.4,1776.7,3.15905321]
[1745802939000,5.324,1777.5,1776.8,1.08150532]
[1745802939203,3.0,1777.4,1776.8,1.08150532]
[1745802940412,5.324,1777.5,1776.8,1.08150532]
[1745802942040,0.7991,1777.8,1776.9,3.97895321]
[1745802942207,16.887,1778.0,1777.2,5.62664959]
[1745802942390,5.324,1777.9,1777.4,0.8199]
[1745802943037,16.887,1778.0,1777.4,0.8199]
[1745802943203,5.324,1777.9,1777.4,0.8199]
[1745802943726,5.324,1777.9,1777.4,6.44609123]
[1745802943920,8.0,1778.1,1777.5,0.8058]
[1745802944125,13.324,1778.1,1777.5,0.8058]
[1745802944441,8.0,1778.1,1777.5,0.8058]
[1745802944629,5.324,1778.0,1777.5,0.8058]
[1745802947447,3.0,1777.9,1777.5,0.8058]
[1745802947740,3.7994,1777.9,1777.4,6.07]
[1745802947906,3.0,1777.7,1777.4,6.07]
[1745802948110,3.0,1777.5,1777.1,0.8143]
[1745802948638,7.174771,1777.4,1777.1,0.8143]
[1745802951744,5.324,1777.4,1777.1,0.8143]
[1745802952147,5.324,1777.4,1777.1,12.51142046]
[1745802952448,3.0,1777.8,1777.2,0.7591]
[1745802952618,0.8237,1777.9,1777.2,0.7591]
[1745802952821,5.324,1777.8,1777.3,0.7591]
[1745802953848,5.324,1777.9,1777.4,0.7859]
[1745802954058,5.324,1777.9,1777.4,6.8559]
[1745802954358,8.318,1778.0,1777.5,0.7859]
[1745802954945,8.318,1778.0,1777.5,6.8559]
[1745802955120,8.318,1778.0,1777.6,0.68559]
[1745802960971,5.0,1778.1,1777.9,0.7767]
[1745802961261,5.317,1778.7,1778.1,0.7767]
[1745802961561,5.317,1778.7,1778.2,0.8119]
[1745802963354,5.317,1778.7,1778.3,0.7912]
[1745802964868,5.316,1778.8,1778.3,0.7912]
[1745802965281,5.316,1778.8,1778.3,1.43266945]
[1745802965580,3.7575,1779.1,1778.3,1.43266945]
[1745802965796,5.316,1778.8,1778.3,1.43266945]
[1745802966576,5.316,1778.8,1778.3,0.7912]
[1745802967796,33.965437,1778.7,1778.1,6.8688]
[1745802967998,3.8305,1778.7,1778.1,6.8688]
[1745802968700,0.8273,1778.9,1778.1,6.8688]
[1745802968863,8.316,1778.8,1778.2,0.7514]
[1745802969194,5.316,1778.8,1778.2,6.8214]
[1745802969373,5.316,1778.8,1778.4,0.7514]
[1745802970006,5.316,1778.9,1778.4,0.7514]
[1745802971015,33.929537,1778.8,1778.2,6.8583]
[1745802971216,3.7946,1778.8,1778.2,6.8583]
[1745802971416,3.7946,1778.8,1778.3,0.68583]
[1745802971782,3.0,1778.8,1778.3,0.68583]
[1745802971976,0.759,1779.0,1778.4,0.7657]
[1745802972181,3.0,1778.8,1778.4,0.7657]
[1745802976279,5.315,1778.8,1778.4,0.7657]
[1745802976500,3.0,1779.1,1778.4,0.7657]
[1745802976810,17.7114,1779.2,1778.5,5.62246386]
[1745802976811,5.315,1779.0,1778.5,5.62246386]
[1745802977016,16.888,1779.2,1778.6,0.8023]
[1745802977226,16.888,1779.2,1778.7,0.8023]
[1745802977397,22.203,1779.2,1778.7,0.8023]
[1745802977597,22.203,1779.2,1778.7,1.48778186]
[1745802977828,22.203,1779.2,1778.7,0.8023]
[1745802978017,3.0,1779.1,1778.7,0.8023]
[1745802978323,3.0,1778.9,1778.7,0.8023]
[1745802978628,8.314,1779.1,1778.7,0.8023]
[1745802978868,3.0,1778.9,1778.7,0.8023]
[1745802979127,8.314,1779.1,1778.7,0.8023]
[1745802979304,3.0,1778.9,1778.7,0.8023]
[1745802979670,8.314,1779.1,1778.7,0.8023]
[1745802979802,3.0,1778.9,1778.7,0.8023]
[1745802980001,8.314,1779.1,1778.7,0.8023]
[1745802980218,3.0,1778.9,1778.7,0.8023]
[1745802980455,8.314,1779.1,1778.7,0.8023]
[1745802980600,3.0,1778.9,1778.7,0.8023]
[1745802980803,8.314,1779.1,1778.7,0.8023]
[1745802981035,8.314,1779.1,1778.5,5.62268374]
[1745802981036,29.966514,1779.0,1778.5,0.7929]
[1745802981221,3.7558,1779.0,1778.5,0.7929]
[1745802982136,5.314,1778.9,1778.5,0.7929]
[1745802984408,3.0,1779.0,1778.5,0.7929]
[1745802984633,8.308,1779.0,1778.5,0.7929]
[1745802985367,8.308,1779.0,1778.5,1.47919]
[1745802987517,0.31277021,1778.9,1778.5,1.47919]
[1745802989556,0.31277021,1778.8,1778.5,1.47919]
[1745802990951,0.31277021,1778.9,1778.5,1.47919]
[1745802991240,0.31277021,1778.9,1778.6,0.818]
[1745802991420,0.31277021,1778.9,1778.7,0.818]
[1745802991625,5.308,1779.3,1778.8,0.818]
[1745802991845,5.308,1779.3,1778.9,0.818]
[1745802992472,0.31277021,1779.2,1778.9,0.818]
[1745802994178,0.31277021,1779.2,1778.4,0.8125]
[1745802994179,12.88129,1778.5,1778.4,0.8125]
[1745802994380,5.94594432,1778.8,1778.4,0.8125]
[1745802994672,5.307,1778.8,1778.4,0.8125]
[1745802995172,0.31277021,1778.7,1778.4,0.8125]
[1745802995985,0.31277021,1778.6,1778.4,0.8125]
[1745802996973,0.31277021,1778.7,1778.4,0.8125]
[1745802997178,5.62077021,1778.7,1778.4,0.8125]
[1745802997643,5.308,1778.7,1778.4,0.8125]
[1745802997838,0.815,1779.2,1778.4,0.8125]
[1745802998038,5.308,1779.1,1778.5,0.20942542]
[1745802998244,3.0,1779.0,1778.6,0.772]
[1745802998549,23.218857,1778.9,1778.7,0.20940187]
[1745802998768,23.53236306,1778.9,1778.7,0.20940187]
[1745802998951,14.79905,1778.8,1778.7,0.20940187]
[1745802999543,18.87405606,1778.8,1778.7,0.20940187]
[1745802999746,34.20994306,1778.8,1778.7,0.20940187]
[1745803000677,4.07500606,1778.8,1778.7,0.20940187]
[1745803000969,4.07500606,1778.8,1778.2,0.8228]
[1745803000970,0.7615,1778.6,1777.8,0.8228]
[1745803001171,34.44844306,1778.8,1777.8,0.8228]
[1745803001172,0.7615,1778.3,1777.8,0.8228]
[1745803001476,3.0,1778.1,1777.6,5.72174551]
[1745803001676,5.608,1778.0,1777.6,5.72174551]
[1745803002047,5.608,1778.0,1777.6,0.8208]
[1745803002373,22.252713,1777.9,1777.6,0.8208]
[1745803003871,22.252713,1777.9,1777.4,5.72174551]
[1745803004180,3.0,1777.9,1777.4,5.72174551]
[1745803004343,0.3,1777.8,1777.4,4.90094551]
[1745803004871,0.3,1777.8,1777.3,7.03950917]
[1745803004872,0.7713,1777.7,1777.3,7.03950917]
[1745803005075,5.309,1777.6,1777.3,7.03950917]
[1745803005373,30.134937,1777.5,1777.3,7.03950917]
[1745803005967,9.353954,1777.5,1777.3,7.03950917]
[1745803006848,8.761404,1777.5,1777.3,7.03950917]
[1745803007064,11.133404,1777.5,1777.3,7.03950917]
[1745803007451,9.287972,1777.5,1777.3,7.03950917]
[1745803007646,2.263668,1777.5,1777.3,7.74346009]
[1745803007875,5.309,1777.6,1777.3,7.74346009]
[1745803008057,3.3,1777.8,1777.3,7.74346009]
[1745803008058,5.309,1777.7,1777.3,7.03950917]
[1745803008463,8.309,1777.7,1777.3,7.03950917]
[1745803009861,8.309,1777.7,1777.3,6.8908]
[1745803010181,3.0,1777.7,1777.3,6.8908]
[1745803010349,4.49388825,1778.8,1777.7,0.8208]
[1745803010350,5.31,1778.2,1777.7,0.8208]
[1745803010552,0.7713,1778.6,1777.7,13.47624083]
[1745803010751,5.31,1778.5,1777.8,0.7947]
[1745803011051,3.0,1778.4,1777.8,0.7947]
[1745803011483,5.31,1778.5,1777.8,0.7947]
[1745803011679,3.0,1778.4,1777.8,0.7947]
[1745803011985,30.434937,1778.3,1777.8,0.7947]
[1745803012188,0.8083,1778.2,1777.7,6.07]
[1745803012488,3.0,1778.0,1777.6,0.8203]
[1745803012686,29.744133,1777.9,1777.6,0.8203]
[1745803012852,29.496967,1777.9,1777.6,0.8203]
[1745803013188,30.134937,1777.9,1777.6,0.8203]
[1745803013485,3.0,1777.8,1777.4,0.766]
[1745803013683,3.0,1778.0,1777.4,0.766]
[1745803016159,3.8083,1778.2,1777.4,0.766]
[1745803016464,3.0,1777.8,1777.4,0.766]
[1745803016665,3.0,1777.8,1777.4,1.4496]
[1745803016868,5.304,1777.9,1777.4,1.4496]
[1745803017066,3.0,1777.8,1777.4,1.4496]
[1745803017587,0.8083,1778.2,1777.4,1.4496]
[1745803017789,3.0,1777.8,1777.4,1.4496]
[1745803018288,0.8083,1778.2,1777.4,1.4496]
[1745803018503,5.305,1777.8,1777.4,1.4496]
[1745803018985,0.8083,1778.2,1777.5,0.7591]
[1745803019188,5.305,1777.8,1777.5,0.7591]
[1745803019386,4.13127279,1778.4,1777.6,0.7591]
[1745803019594,8.305,1778.3,1777.6,0.7591]
[1745803019963,5.305,1778.3,1777.6,0.7591]
[1745803020479,8.305,1778.3,1777.6,0.7591]
[1745803020671,52.404487,1778.5,1777.6,0.7591]
[1745803020867,5.305,1778.4,1777.6,0.818]
[1745803021059,3.0,1778.3,1777.6,0.818]
[1745803022296,3.0,1778.3,1777.4,0.8223]
[1745803022297,3.1570932,1778.1,1777.4,0.8223]
[1745803022592,3.1570932,1778.1,1777.2,6.07]
[1745803022593,3.7762,1777.9,1777.2,6.8923]
[1745803022780,3.0,1777.7,1777.2,6.8923]
[1745803023097,3.0,1777.5,1777.2,6.8923]
[1745803023292,24.959105,1777.4,1777.2,0.8223]
[1745803023492,12.01255,1777.3,1777.2,0.8223]
[1745803023847,28.831075,1777.4,1777.2,0.8223]
[1745803024898,0.7762,1777.9,1777.2,0.8223]
[1745803025067,3.0,1777.5,1777.2,0.8223]
[1745803025266,5.3937,1777.4,1777.2,0.8223]
[1745803025566,5.304,1777.6,1777.2,0.8223]
[1745803026192,5.305,1777.7,1777.2,0.8223]
[1745803029003,33.134937,1777.6,1777.2,0.8223]
[1745803029306,30.134937,1777.5,1777.2,0.8223]
[1745803030391,27.396069,1777.5,1777.2,0.8223]
[1745803031223,3.0,1777.4,1777.2,0.8223]
[1745803031408,5.305,1777.3,1776.8,0.823]
[1745803031608,3.0,1777.1,1776.8,0.823]
[1745803031810,3.0,1776.9,1776.8,0.823]
[1745803032009,3.668776,1776.9,1776.8,0.823]
[1745803033434,3.0,1777.0,1776.8,0.823]
[1745803033637,15.799148,1776.9,1776.8,0.823]
[1745803034006,8.622304,1776.9,1776.8,0.823]
[1745803034406,8.150304,1776.9,1776.8,0.823]
[1745803035247,5.306,1777.2,1776.8,0.823]
[1745803035544,5.306,1777.2,1776.8,1.22100932]
[1745803036518,5.306,1777.2,1776.8,0.823]